Workbook

Sheet Rozvaha
C1: ROZVAHA
A2: Minimální závazný výčet informací | C2: v plném rozsahu
A3: uvedený ve vyhlášce MF ČR | C3: k | G3: Název a sídlo účetní jednotky
A4: č. 500/2002 Sb. Příloze č. 1
A5: novelizované vyhláškou
A6: č. 441/2017 Sb.
C7: IČO
A11: ozn. | B11: A K T I V A | C11: řád. | E11: Běžné účetní období | G11: Minulé úč. období
A12: a | B12: b | D12: Brutto 1 | E12: Korekce 2 | F12: Netto 3 | G12: Netto 4
B13: AKTIVA CELKEM (ř. 2 + 3 + 37 + 74) | C13: 001 | D13: =D14+D15+D51+D92 -> 0 | E13: =E14+E15+E51+E92 -> 0 | F13: =F14+F15+F51+F92 -> 0 | G13: =G14+G15+G51+G92 -> 0
A14: A. | B14: Pohledávky za upsaný základní kapitál | C14: 002
A15: B. | B15: Stálá aktiva (ř. 4 + 14 + 27) | C15: 003 | D15: =D16+D26+D39 -> 0 | E15: =E16+E26+E39 -> 0 | F15: =F16+F26+F39 -> 0 | G15: =G16+G26+G39 -> 0
A16: B.I. | B16: Dlouhodobý nehmotný majetek (ř. 5+6+9+10+11) | C16: 004 | D16: =D17+D18+D21+D22+D23 -> 0 | E16: =E17+E18+E21+E22+E23 -> 0 | F16: =F17+F18+F21+F22+F23 -> 0 | G16: =G17+G18+G21+G22+G23 -> 0
A17: B.I.1. | B17: Nehmotné výsledky vývoje | C17: 005 | F17: =D17+E17 -> 0
A18: B.I.2. | B18: Ocenitelná práva (ř. 7+8) | C18: 006 | D18: =D19+D20 -> 0 | E18: =E19+E20 -> 0 | F18: =F19+F20 -> 0 | G18: =G19+G20 -> 0
A19: B.I.2.1. | B19: Software | C19: 007 | F19: =D19+E19 -> 0
A20: B.I.2.2. | B20: Ostatní ocenitelná práva | C20: 008 | F20: =D20+E20 -> 0
A21: B.I.3. | B21: Goodwill | C21: 009 | F21: =D21+E21 -> 0
A22: B.I.4. | B22: Ostatní dlouhodobý nehmotný majetek | C22: 010 | F22: =D22+E22 -> 0
A23: B.I.5. | B23: Poskytnuté zálohy na dlouhodobý nehmotný majetek a nedokončený dlouhodobý nehmotný majetek (ř.12+13) | C23: 011 | D23: =D24+D25 -> 0 | E23: =E24+E25 -> 0 | F23: =F24+F25 -> 0 | G23: =G24+G25 -> 0
A24: B.I.5.1. | B24: Poskytnuté zálohy na dlouhodobý nehmotný majetek | C24: 012 | F24: =D24+E24 -> 0
A25: B.I.5.2. | B25: Nedokončený dlouhodobý nehmotný majetek | C25: 013 | F25: =D25+E25 -> 0
A26: B.II. | B26: Dlouhodobý hmotný majetek (ř.15+18+19+20+24) | C26: 014 | D26: =D27+D30+D31+D32+D36 -> 0 | E26: =E27+E30+E31+E32+E36 -> 0 | F26: =F27+F30+F31+F32+F36 -> 0 | G26: =G27+G30+G31+G32+G36 -> 0
A27: B.II.1. | B27: Pozemky a stavby (ř. 16+17) | C27: 015 | D27: =D28+D29 -> 0 | E27: =E28+E29 -> 0 | F27: =F28+F29 -> 0 | G27: =G28+G29 -> 0
A28: B.II.1.1. | B28: Pozemky | C28: 016 | F28: =D28+E28 -> 0
A29: B.II.1.2. | B29: Stavby | C29: 017 | F29: 0
A30: B.II.2. | B30: Hmotné movité věci a jejich soubory | C30: 018 | F30: 0
A31: B.II.3. | B31: Oceňovací rozdíl k nabytému majetku | C31: 019 | F31: 0
A32: B.II.4. | B32: Ostatní dlouhodobý hmotný majetek (ř. 21+22+23) | C32: 020 | D32: =D33+D34+D35 -> 0 | E32: =E33+E34+E35 -> 0 | F32: =F33+F34+F35 -> 0 | G32: =G33+G34+G35 -> 0
A33: B.II.4.1. | B33: Pěstitelské celky trvalých porostů | C33: 021 | F33: 0
A34: B.II.4.2. | B34: Dospělá zvířata a jejich skupiny | C34: 022 | F34: 0
A35: B.II.4.3. | B35: Jiný dlouhodobý hmotný majetek | C35: 023 | F35: 0
A36: B.II.5. | B36: Poskytnuté zálohy na dlouhodobý hmotný majetek a nedokončený dlouhodobý hmotný majetek (ř. 25+26) | C36: 024 | D36: =D37+D38 -> 0 | E36: =E37+E38 -> 0 | F36: =F37+F38 -> 0 | G36: =G37+G38 -> 0
A37: B.II.5.1. | B37: Poskytnuté zálohy na dlouhodobý hmotný majetek | C37: 025 | F37: 0
A38: B.II.5.2. | B38: Nedokončený dlouhodobý hmotný majetek | C38: 026 | F38: 0
A39: B.III. | B39: Dlouhodobý finanční majetek (ř. 28 až 34) | C39: 027 | D39: =SUM(D40:D46) -> 0 | E39: =SUM(E40:E46) -> 0 | F39: =SUM(F40:F46) -> 0 | G39: =SUM(G40:G46) -> 0
A40: B.III.1. | B40: Podíly - ovládaná osoba nebo ovládající osoba | C40: 028
A41: B.III.2. | B41: Zápůjčky a úvěry - ovládaná nebo ovládající osoba | C41: 029
A42: B.III.3. | B42: Podíly - podstatný vliv | C42: 030
A43: B.III.4. | B43: Zápůjčky a úvěry - podstatný vliv | C43: 031
A44: B.III.5. | B44: Ostatní dlouhodobé cenné papíry a podíly | C44: 032
A45: B.III.6. | B45: Zápůjčky a úvěry - ostatní | C45: 033
A46: B.III.7. | B46: Ostatní dlouhodobý finanční majetek (ř. 35+36) | C46: 034 | D46: =D47+D48 -> 0 | E46: =E47+E48 -> 0 | F46: =F47+F48 -> 0 | G46: =G47+G48 -> 0
A47: B.III.7.1. | B47: Jiný dlouhodobý finanční majetek | C47: 035
A48: B.III.7.2. | B48: Poskytnuté zálohy na dlouhodobý finanční majetek | C48: 036
A49: ozn. | B49: A K T I V A | C49: řád. | E49: Běžné účetní období | G49: Minulé úč. období
A50: a | B50: b | C50: c | D50: Brutto 1 | E50: Korekce 2 | F50: Netto 3 | G50: Netto 4
A51: C. | B51: Oběžná aktiva (ř. 38 + 46 + 68 + 71) | C51: 037 | D51: =D52+D60+D86+D89 -> 0 | E51: =E52+E60+E86+E89 -> 0 | F51: =F52+F60+F86+F89 -> 0 | G51: =G52+G60+G86+G89 -> 0
A52: C.I. | B52: Zásoby (ř. 39+40+41+44+45) | C52: 038 | D52: =D53+D54+D55+D58+D59 -> 0 | E52: =E53+E54+E55+E58+E59 -> 0 | F52: =F53+F54+F55+F58+F59 -> 0 | G52: =G53+G54+G55+G58+G59 -> 0
A53: C.I.1. | B53: Materiál | C53: 039
A54: C.I.2. | B54: Nedokončená výroba a polotovary | C54: 040
A55: C.I.3. | B55: Výrobky a zboží (ř. 42+43) | C55: 041 | D55: =D56+D57 -> 0 | E55: =E56+E57 -> 0 | F55: =F56+F57 -> 0 | G55: =G56+G57 -> 0
A56: C.I.3.1. | B56: Výrobky | C56: 042
A57: C.I.3.2. | B57: Zboží | C57: 043
A58: C.I.4. | B58: Mladá a ostatní zvířata a jejich skupiny | C58: 044
A59: C.I.5. | B59: Poskytnuté zálohy na zásoby | C59: 045
A60: C.II. | B60: Pohledávky (ř. 47 + 57 + 68) | C60: 046 | D60: =D61+D71+D82 -> 0 | E60: =E61+E71 -> 0 | F60: =F61+F71 -> 0 | G60: =G61+G71 -> 0
A61: C.II.1. | B61: Dlouhodobé pohledávky (ř. 48 až 52) | C61: 047 | D61: =SUM(D62:D66) -> 0 | E61: =SUM(E62:E66) -> 0 | F61: =SUM(F62:F66) -> 0 | G61: =SUM(G62:G66) -> 0
A62: C.II.1.1. | B62: Pohledávky z obchodních vztahů | C62: 048
A63: C.II.1.2. | B63: Pohledávky - ovládaná nebo ovládající osoba | C63: 049
A64: C.II.1.3. | B64: Pohledávky - podstatný vliv | C64: 050
A65: C.II.1.4. | B65: Odložená daňová pohledávka | C65: 051
A66: C.II.1.5. | B66: Pohledávky - ostatní (ř. 53 až 56) | C66: 052 | D66: =SUM(D67:D70) -> 0 | E66: =SUM(E67:E70) -> 0 | F66: =SUM(F67:F70) -> 0 | G66: =SUM(G67:G70) -> 0
A67: C.II.1.5.1. | B67: Pohledávky za společníky | C67: 053
A68: C.II.1.5.2. | B68: Dlouhodobé poskytnuté zálohy | C68: 054
A69: C.II.1.5.3. | B69: Dohadné účty aktivní | C69: 055
A70: C.II.1.5.4. | B70: Jiné pohledávky | C70: 056
A71: C.II.2 | B71: Krátkodobé pohledávky (ř. 58 až 61) | C71: 057 | D71: =SUM(D72:D75) -> 0 | E71: =SUM(E72:E75) -> 0 | F71: =SUM(F72:F75) -> 0 | G71: =SUM(G72:G75) -> 0
A72: C.II.2.1. | B72: Pohledávky z obchodních vztahů | C72: 058
A73: C.II.2.2. | B73: Pohledávky - ovládaná nebo ovládající osoba | C73: 059
A74: C.II.2.3. | B74: Pohledávky - podstatný vliv | C74: 060
A75: C.II.2.4. | B75: Pohledávky - ostatní (ř. 62 až 67) | C75: 061 | D75: =SUM(D76:D81) -> 0 | E75: =SUM(E76:E81) -> 0 | F75: =SUM(F76:F81) -> 0 | G75: =SUM(G76:G81) -> 0
A76: C.II.2.4.1. | B76: Pohledávky za společníky | C76: 062
A77: C.II.2.4.2. | B77: Sociální zabezpečení a zdravotní pojištění | C77: 063
A78: C.II.2.4.3. | B78: Stát - daňové pohledávky | C78: 064
A79: C.II.2.4.4. | B79: Krátkodobé poskytnuté zálohy | C79: 065
A80: C.II.2.4.5. | B80: Dohadné účty aktivní | C80: 066
A81: C.II.2.4.6. | B81: Jiné pohledávky | C81: 067
A82: C.II.3. | B82: Časové rozlišení aktiv (ř. 69 až 71) | C82: 068 | D82: =SUM(D83:D85) -> 0 | E82: =SUM(E83:E85) -> 0 | F82: =SUM(F83:F85) -> 0 | G82: =SUM(G83:G85) -> 0
A83: C.II.3.1. | B83: Náklady příštích období | C83: 069
A84: C.II.3.2. | B84: Komplexní náklady příštích období | C84: 070
A85: C.II.3.3. | B85: Příjmy příštích období | C85: 071
A86: C.III. | B86: Krátkodobý finanční majetek (ř. 73+74) | C86: 072 | D86: =SUM(D87:D88) -> 0 | E86: =SUM(E87:E88) -> 0 | F86: =SUM(F87:F88) -> 0 | G86: =SUM(G87:G88) -> 0
A87: C.III.1. | B87: Podíly - ovládaná osoba nebo ovládající osoba | C87: 073
A88: C.III.2. | B88: Ostatní krátkodobý finanční majetek | C88: 074
A89: C.IV. | B89: Peněžní prostředky (ř. 76+77) | C89: 075 | D89: =SUM(D90:D91) -> 0 | E89: =SUM(E90:E91) -> 0 | F89: =SUM(F90:F91) -> 0 | G89: =SUM(G90:G91) -> 0
A90: C.IV.1. | B90: Peněžní prostředky v pokladně | C90: 076
A91: C.IV.2. | B91: Peněžní prostředky na účtech | C91: 077
A92: D.I. | B92: Časové rozlišení aktiv (ř. 79 až 81) | C92: 078 | D92: =SUM(D93:D95) -> 0 | E92: =SUM(E93:E95) -> 0 | F92: =SUM(F93:F95) -> 0 | G92: =SUM(G93:G95) -> 0
A93: D.I.1. | B93: Náklady příštích období | C93: 079
A94: D.I.2. | B94: Komplexní náklady příštích období | C94: 080
A95: D.I.3. | B95: Příjmy příštích období | C95: 081
A97: ozn. a | B97: P A S I V A b | C97: řád. c | E97: Stav v běžném účet. období 5 | G97: Stav v minulém účet. období 6
B98: PASIVA CELKEM (ř.83 + 104 + 147) | C98: 082 | E98: =E99+E120+E164 -> 0 | G98: =G99+G120+G164 -> 0
A99: A. | B99: Vlastní kapitál (ř. 84 + 88 + 96 + 99 + 102 - 103) | C99: 083 | E99: =E100+E104+E112+E115+E118-E119 -> 0 | G99: =G100+G104+G112+G115+G118 -> 0
A100: A.I. | B100: Základní kapitál (ř. 85 až 87) | C100: 084 | E100: =SUM(E101:E103) -> 0 | G100: =SUM(G101:G103) -> 0
A101: A.I.1. | B101: Základní kapitál | C101: 085
A102: A.I.2. | B102: Vlastní podíly (-) | C102: 086
A103: A.I.3. | B103: Změny základního kapitálu | C103: 087
A104: A.II. | B104: Ážio a kapitálové fondy (ř. 89 + 90) | C104: 088 | E104: =SUM(E105:E106) -> 0 | G104: =SUM(G105:G106) -> 0
A105: A.II.1. | B105: Ážio | C105: 089
A106: A.II.2. | B106: Kapitálové fondy (ř. 91 až 95) | C106: 090 | E106: =SUM(E107:E111) -> 0 | G106: =SUM(G107:G111) -> 0
A107: A.II.2.1. | B107: Ostatní kapitálové fondy | C107: 091
A108: A.II.2.2. | B108: Oceňovací rozdíly z přecenění majetku a závazků | C108: 092
A109: A.II.2.3. | B109: Oceňovací rozdíly z přecenění při přeměnách obchodních korporací | C109: 093
A110: A.II.2.4. | B110: Rozdíly z přeměn obchodních korporací | C110: 094
A111: A.II.2.5. | B111: Rozdíly z ocenění při přeměnách obchodních korporací | C111: 095
A112: A.III. | B112: Fondy ze zisku (ř. 97 + 98) | C112: 096 | E112: =SUM(E113:E114) -> 0 | G112: =SUM(G113:G114) -> 0
A113: A.III.1. | B113: Ostatní rezervní fondy | C113: 097
A114: A.III.2. | B114: Statutární a ostatní fondy | C114: 098
A115: A.IV. | B115: Výsledek hospodaření minulých let (ř. 100 + 101) | C115: 099 | E115: =SUM(E116:E117) -> 0 | G115: =SUM(G116:G117) -> 0
A116: A.IV.1. | B116: Nerozdělený zisk nebo neuhrazená ztráta minulých let | C116: 100
A117: A.IV.2. | B117: Jiný výsledek hospodaření minulých let | C117: 101
A118: A.V. | B118: Výsledek hospodaření běžného účetního období (+/-) /ř.01-( 84 + 88 + 96 + 99 + 103 + 104 + 147)/ | C118: 102 | E118: =F13-E100-E104-E112-E115-E119-E120-E164 -> 0 | G118: =G13-G100-G104-G112-G115-G119-G120-G164 -> 0
A119: A.VI. | B119: Rozhodnuto o zálohové výplatě podílu na zisku | C119: 103
A120: B. + C. | B120: Cizí zdroje (ř.105 + 110) | C120: 104 | E120: =E121+E126 -> 0 | G120: =G121+G126 -> 0
A121: B. | B121: Rezervy (ř. 106 až 109) | C121: 105 | E121: =SUM(E122:E125) -> 0 | G121: =SUM(G122:G125) -> 0
A122: B.1. | B122: Rezerva na důchody a podobné závazky | C122: 106
A123: B.2. | B123: Rezerva na daň z příjmů | C123: 107
A124: B.3. | B124: Rezervy podle zvláštních právních předpisů | C124: 108
A125: B.4. | B125: Ostatní rezervy | C125: 109
A126: C. | B126: Závazky (ř. 111 + 126 + 144) | C126: 110 | E126: =E127+E143+E161 -> 0 | G126: =G127+G143+G161 -> 0
A127: C.I. | B127: Dlouhodobé závazky (ř. 112 + ř. 115 až 122) | C127: 111 | E127: =E128+SUM(E131:E138) -> 0 | G127: =G128+SUM(G131:G138) -> 0
A128: C.I.1. | B128: Vydané dluhopisy (ř. 113 + 114) | C128: 112 | E128: =SUM(E129:E130) -> 0 | G128: =SUM(G129:G130) -> 0
A129: C.I.1.1. | B129: Vyměnitelné dluhopisy | C129: 113
A130: C.I.1.2. | B130: Ostatní dluhopisy | C130: 114
A131: C.I.2. | B131: Závazky k úvěrovým institucím | C131: 115
A132: C.I.3. | B132: Dlouhodobé přijaté zálohy | C132: 116
A133: C.I.4. | B133: Závazky z obchodních vztahů | C133: 117
A134: C.I.5. | B134: Dlouhodobé směnky k úhradě | C134: 118
A135: C.I.6. | B135: Závazky - ovládaná nebo ovládající osoba | C135: 119
A136: C.I.7. | B136: Závazky - podstatný vliv | C136: 120
A137: C.I.8. | B137: Odložený daňový závazek | C137: 121
A138: C.I.9. | B138: Závazky - ostatní (ř. 123 až 125) | C138: 122 | E138: =SUM(E139:E141) -> 0 | G138: =SUM(G139:G141) -> 0
A139: C.I.9.1. | B139: Závazky ke společníkům | C139: 123
A140: C.I.9.2. | B140: Dohadné účty pasivní | C140: 124
A141: C.I.9.3. | B141: Jiné závazky | C141: 125
A142: ozn. a | B142: P A S I V A b | C142: řád. c | E142: Stav v běžném účet. období 5 | G142: Stav v minulém účet. období 6
A143: C.II. | B143: Krátkodobé závazky (ř. 127 + 130 až 136) | C143: 126 | E143: =E144+SUM(E147:E153) -> 0 | G143: =G144+SUM(G147:G153) -> 0
A144: C.II.1. | B144: Vydané dluhopisy ř. 128 + 129 | C144: 127 | E144: =SUM(E145:E146) -> 0 | G144: =SUM(G145:G146) -> 0
A145: C.II.1.1. | B145: Vyměnitelné dluhopisy | C145: 128
A146: C.II.1.2. | B146: Ostatní dluhopisy | C146: 129
A147: C.II.2. | B147: Závazky k úvěrovým institucím | C147: 130
A148: C.II.3. | B148: Krátkodobé přijaté zálohy | C148: 131
A149: C.II.4. | B149: Závazky z obchodních vztahů | C149: 132
A150: C.II.5. | B150: Krátkodobé směnky k úhradě | C150: 133
A151: C.II.6. | B151: Závazky - ovládaná nebo ovládající osoba | C151: 134
A152: C.II.7. | B152: Závazky - podstatný vliv | C152: 135
A153: C.II.8. | B153: Závazky - ostatní (ř. 137 až 143) | C153: 136 | E153: =SUM(E154:E160) -> 0 | G153: =SUM(G154:G160) -> 0
A154: C.II.8.1. | B154: Závazky ke společníkům | C154: 137
A155: C.II.8.2. | B155: Krátkodobé finanční výpomoci | C155: 138
A156: C.II.8.3. | B156: Závazky k zaměstnancům | C156: 139
A157: C.II.8.4. | B157: Závazky ze sociálního zabezpečení a zdravotního pojištění | C157: 140
A158: C.II.8.5. | B158: Stát - daňové závazky a dotace | C158: 141
A159: C.II.8.6. | B159: Dohadné účty pasivní | C159: 142
A160: C.II.8.7. | B160: Jiné závazky | C160: 143
A161: C.III. | B161: Časové rozlišení v pasivech (ř. 145 + 146) | C161: 144 | E161: =SUM(E162:E163) -> 0 | G161: =SUM(G162:G163) -> 0
A162: C.III.1. | B162: Výdaje příštích období | C162: 145
A163: C.III.2. | B163: Výnosy příštích období | C163: 146
A164: D. | B164: Časové rozlišení v pasivech (ř. 148 + 149) | C164: 147 | E164: =SUM(E165:E166) -> 0 | G164: =SUM(G165:G166) -> 0
A165: 1. | B165: Výdaje příštích období | C165: 148
A166: 2. | B166: Výnosy příštích období | C166: 149

Sheet Výkaz ZZD
C1: VÝKAZ ZISKU A ZTRÁTY
A2: Minimální závazný výčet informací | C2: druhové členění
A3: uvedený ve vyhlášce MF ČR | C3: k | E3: Název a sídlo účetní jednotky
A4: č. 500/2002 Sb. Příloze č. 2 | C4: 31.12.2020 | E4: L a m i d o , a.s.
A5: novelizované vyhláškou | C5: v tisících
A6: č. 441/2017 Sb. | E6: Sebranice u Litomyšle čp.11
C7: IČO | E7: Sebranice u Litomyšle
C8: 47468432 | E8: 569 62
A11: Označení | B11: TEXT | D11: Číslo řádku | E11: Skutečnost v účetním období
A12: a | B12: b | D12: c | E12: sledovaném 1 | F12: minulém 2
A13: I. | B13: Tržby z prodeje výrobků a služeb | D13: 01 | E13: 7791 | F13: 6008
A14: II. | B14: Tržby za prodej zboží | D14: 02 | E14: 246 | F14: 298
A15: A. | B15: Výkonová spotřeba (ř. 4 + 5 + 6) | D15: 03 | E15: =E16+E17+E18 -> 3987 | F15: =F16+F17+F18 -> 3949
A16: A.1. | B16: Náklady vynaložené na prodané zboží | D16: 04 | E16: 153 | F16: 188
A17: A.2. | B17: Spotřeba materiálu a energie | D17: 05 | E17: 2360 | F17: 2356
A18: A.3. | B18: Služby | D18: 06 | E18: 1474 | F18: 1405
A19: B. | B19: Změna stavu zásob vlastní činnosti (+/-) | D19: 07 | E19: 562 | F19: -108
A20: C. | B20: Aktivace (-) | D20: 08 | E20: -31 | F20: -24
A21: D. | B21: Osobní náklady (ř. 10 + 11) | D21: 09 | E21: =E22+E23 -> 5875 | F21: =F22+F23 -> 6128
A22: D.1. | B22: Mzdové náklady | D22: 10 | E22: 4444 | F22: 4479
A23: D.2. | B23: Náklady na soc. zabezpečení, zdrav. pojištění a ost. náklady (ř. 12 + 13) | D23: 11 | E23: =SUM(E24:E25) -> 1431 | F23: =SUM(F24:F25) -> 1649
A24: D.2.1. | B24: Náklady na sociální zabezpečení a zdravotní pojištění | D24: 12 | E24: 1228 | F24: 1417
A25: D.2.2. | B25: Ostatní náklady | D25: 13 | E25: 203 | F25: 232
A26: E. | B26: Úpravy hodnot v provozní oblasti (ř. 15 + 18 + 19) | D26: 14 | E26: =E27+E30+E31 -> 425 | F26: =F27+F30+F31 -> 314
A27: E.1. | B27: Úpravy hodnot dlouh. nehmot. a hmotného majetku (ř. 16 + 17) | D27: 15 | E27: =E28+E29 -> 247 | F27: =F28+F29 -> 324
A28: E.1.1 | B28: Úpravy hodnot dlouh. nehmotného a hmotného majetku - trvalé | D28: 16 | E28: 247 | F28: 324
A29: E.1.2 | B29: Úpravy hodnot dlouh. nehmot. a hmotného majetku - dočasné | D29: 17 | E29: 0 | F29: 0
A30: E.2. | B30: Úpravy hodnot zásob | D30: 18 | E30: -183 | F30: 0
A31: E.3 | B31: Úpravy hodnot pohledávek | D31: 19 | E31: 361 | F31: -10
A32: III. | B32: Ostatní provozní výnosy (ř. 21 + 22 + 23) | D32: 20 | E32: =E33+E34+E35 -> 1214 | F32: =F33+F34+F35 -> 1362
A33: III.1. | B33: Tržby z prodeje dlouhodobého majetku | D33: 21 | E33: 0 | F33: 0
A34: III.2. | B34: Tržby z prodeje materiálu | D34: 22 | E34: 1 | F34: 7
A35: III.3. | B35: Jiné provozní výnosy | D35: 23 | E35: 1213 | F35: 1355
A36: F. | B36: Ostatní provozní náklady (ř. 25 + 26 + 27 + 28 + 29) | D36: 24 | E36: =SUM(E37:E41) -> 379 | F36: =SUM(F37:F41) -> 130
A37: F.1. | B37: Zůstatková cena prodaného dlouhodobého majetku | D37: 25 | E37: 0 | F37: 0
A38: F.2. | B38: Prodaný materiál | D38: 26 | E38: 0 | F38: 0
A39: F.3. | B39: Daně a poplatky | D39: 27 | E39: 17 | F39: 17
A40: F.4. | B40: Rezervy v provozní oblasti a komplexní náklady příštích období | D40: 28 | E40: 0 | F40: 0
A41: F.5. | B41: Jiné provozní náklady | D41: 29 | E41: 362 | F41: 113
A42: * | B42: Provozní výsledek hospodaření (ř.1+2-3(+/-)7(+/-)8-9-14+20-24 | D42: 30 | E42: =E13+E14-E15-E19-E20-E21-E26+E32-E36 -> -1946 | F42: =F13+F14-F15-F19-F20-F21-F26+F32-F36 -> -2721
A44: Označení | B44: TEXT | D44: Číslo řádku | E44: Skutečnost v účetním období
A45: a | B45: b | D45: c | E45: sledovaném 1 | F45: minulém 2
A46: IV. | B46: Výnosy z dlouhodobého finančního majetku - podíly (ř. 32 + 33) | D46: 31 | E46: 0 | F46: =F47+F48 -> 0
A47: IV.1. | B47: Výnosy z podílů - ovládaná nebo ovládající osoba | D47: 32 | E47: 0 | F47: 0
A48: IV.2. | B48: Ostatní výnosy z podílů | D48: 33 | E48: 0 | F48: 0
A49: G. | B49: Náklady vynaložené na prodané podíly | D49: 34 | E49: 0 | F49: 0
A50: V. | B50: Výnosy z ostatního dlouhodobého finančního majetku (ř. 36 + 37) | D50: 35 | E50: =E51+E52 -> 0 | F50: =F51+F52 -> 0
A51: V.1. | B51: Výnosy z ostatního dlouhodobého finančního majetku - ovládaná nebo ovládající osoba | D51: 36 | E51: 0 | F51: 0
A52: V.2. | B52: Ostatní výnosy z ostatního dlouhodobého finančního majetku | D52: 37 | E52: 0 | F52: 0
A53: H. | B53: Náklady související s ostatním dlouhodobým finančním majetkem | D53: 38 | E53: 0 | F53: 0
A54: VI. | B54: Výnosové úroky a podobné výnosy (ř. 40 + 41) | D54: 39 | E54: 3937 | F54: =F55+F56 -> 4254
A55: VI.1. | B55: Výnosové úroky a podobné výnosy - ovládaná nebo ovládající osoba | D55: 40 | E55: 0 | F55: 0
A56: VI.2. | B56: Ostatní výnosové úroky a podobné výnosy | D56: 41 | E56: 3937 | F56: 4254
A57: I. | B57: Úpravy hodnot a rezervy ve finanční oblasti | D57: 42 | E57: 9170 | F57: 300
A58: J. | B58: Nákladové úroky a podobné náklady (ř. 44 + 45) | D58: 43 | E58: =E59+E60 -> 0 | F58: =F59+F60 -> 0
A59: J.1. | B59: Nákladové úroky a podobné náklady - ovládaná nebo ovládající osoba | D59: 44 | E59: 0 | F59: 0
A60: J.2. | B60: Ostatní nákladové úroky a podobné náklady | D60: 45 | E60: 0 | F60: 0
A61: VII. | B61: Ostatní finanční výnosy | D61: 46 | E61: 29 | F61: 427
A62: K. | B62: Ostatní finanční náklady | D62: 47 | E62: 30 | F62: 596
A63: * | B63: Finanční výsledek hospodaření /(ř.31-34+35-38+39(+/-)42-43+46-47)/ | D63: 48 | E63: =E46-E49+E50-E53+E54-E57-E58+E61-E62 -> -5234 | F63: =F46-F49+F50-F53+F54-F57-F58+F61-F62 -> 3785
A64: ** | B64: Výsledek hospodaření před zdaněním (ř. 30 + 48) | D64: 49 | E64: =E42+E63 -> -7180 | F64: =F42+F63 -> 1064
A65: L. | B65: Daň z příjmů (ř. 51 + 52) | D65: 50 | E65: =SUM(E66:E67) -> 143 | F65: =SUM(F66:F67) -> 4
A66: L.1. | B66: Daň z příjmů splatná | D66: 51 | E66: 9 | F66: 0
A67: L.2. | B67: Daň z příjmů odložená | D67: 52 | E67: 134 | F67: 4
A68: ** | B68: Výsledek hospodaření po zdanění (ř. 49 - 50) | D68: 53 | E68: =E64-E65 -> -7323 | F68: =F64-F65 -> 1060
A69: M. | B69: Převod podílu na výsledku hospodaření společníkům | D69: 54 | E69: 0 | F69: 0
A70: *** | B70: Výsledek hospodaření za účetní období ( + / - ) (ř. 53 (+/-) 54) | D70: 55 | E70: =E68+E69 -> -7323 | F70: =F68+F69 -> 1060
A71: * | B71: Čistý obrat za účet. období = I. + II. + III. + IV. + V. + VI. + VII. | D71: 56 | E71: =E13+E14+E32+E46+E50+E54+E61 -> 13217 | F71: =F13+F14+F32+F46+F50+F54+F61 -> 12349

Sheet Výkaz ZZU
C1: VÝKAZ ZISKU A ZTRÁTY
A2: Minimální závazný výčet informací | C2: účelové členění
A3: uvedený ve vyhlášce MF ČR | C3: k | E3: Název a sídlo účetní jednotky
A4: č. 500/2002 Sb. Příloze č. 3
A5: novelizované vyhláškou
A6: č. 472/2003
C7: IČO
A11: Označení | B11: TEXT | D11: Číslo řádku | E11: Skutečnost v účetním období
A12: a | B12: b | D12: c | E12: sledovaném 1 | F12: minulém 2
A13: I. | B13: Tržby z prodeje výrobků, zboží a služeb | D13: 01
A14: A. | B14: Náklady prodeje | D14: 02
A15: * | B15: Hrubý zisk nebo ztráta | D15: 03 | E15: =E13-E14 -> 0 | F15: =F13-F14 -> 0
A16: B. | B16: Odbytové náklady | D16: 04
A17: C. | B17: Správní režie | D17: 05
A18: II. | B18: Jiné provozní výnosy | D18: 06
A19: D. | B19: Jiné provozní náklady | D19: 07
A20: * | B20: Provozní výsledek hospodaření | D20: 08 | E20: =E15-E16-E17+E18-E19 -> 0 | F20: =F15-F16-F17+F18-F19 -> 0
A21: III. | B21: Tržby z prodeje cenných papírů a podílů | D21: 09
A22: E. | B22: Prodané cenné papíry a podíly | D22: 10
A23: IV. | B23: Výnosy z dlouhodobého finančního majetku | D23: 11 | E23: =SUM(E24:E26) -> 0 | F23: =SUM(F24:F26) -> 0
A24: IV. 1. | B24: Výnosy z podílů v ovládaných a řízených osobách a v účetních jednotkách pod podstatným vlivem | D24: 12
A25: 2. | B25: Výnosy z ostatních dlouhodobých cenných papírů a podílů | D25: 13
A26: 3. | B26: Výnosy z ostatního dlouhodobého finančního majetku | D26: 14
A27: V. | B27: Výnosy z krátkodobého finančního majetku | D27: 15
A28: F. | B28: Náklady z finančního majetku | D28: 16
A29: VI. | B29: Výnosy z přecenění cenných papírů a derivátů | D29: 17
A30: G. | B30: Náklady z přecenění cenných papírů a derivátů | D30: 18
A31: H. | B31: Změna stavu rezerv a opravných položek ve finanční oblasti | D31: 19
A32: VII. | B32: Výnosové úroky | D32: 20
A33: I. | B33: Nákladové úroky | D33: 21
A34: VIII. | B34: Ostatní finanční výnosy | D34: 22
A35: J. | B35: Ostatní finanční náklady | D35: 23
A36: IX. | B36: Převod finančních výnosů | D36: 24
A37: K. | B37: Převod finančních nákladů | D37: 25
A38: * | B38: Finanční výsledek hospodaření | D38: 26 | E38: =E21-E22+E23+E27-E28+E29-E30-E31+E32-E33+E34-E35+E36-E37 -> 0 | F38: =F21-F22+F23+F27-F28+F29-F30-F31+F32-F33+F34-F35+F36-F37 -> 0
A39: Označení | B39: TEXT | D39: Číslo řádku | E39: Skutečnost v účetním období
A40: a | B40: b | D40: c | E40: sledovaném 1 | F40: minulém 2
A41: L. | B41: Daň z příjmů za běžnou činnost | D41: 27 | E41: =SUM(E42:E43) -> 0 | F41: =SUM(F42:F43) -> 0
A42: L. 1. | B42: - splatná | D42: 28
A43: 2. | B43: - odložená | D43: 29
A44: * | B44: Výsledek hospodaření za běžnou činnost | D44: 30 | E44: =E20+E38-E41 -> 0 | F44: =F20+F38-F41 -> 0
A45: X. | B45: Mimořádné výnosy | D45: 31
A46: M. | B46: Mimořádné náklady | D46: 32
A47: N | B47: Daň z příjmů z mimořádné činnosti | D47: 33 | E47: =SUM(E48:E49) -> 0 | F47: =SUM(F48:F49) -> 0
A48: N. 1 | B48: - splatná | D48: 34
A49: 2. | B49: - odložená | D49: 35
A50: * | B50: Mimořádný hospodářský výsledek | D50: 36 | E50: =E45-E46-E47 -> 0 | F50: =F45-F46-F47 -> 0
A51: T. | B51: Převod podílu na hospodářském výsledku společníkům | D51: 37
A52: *** | B52: Výsledek hospodaření za účetní období ( + / - ) | D52: 38 | E52: =E44+E50-E51 -> 0 | F52: =F44+F50-F51 -> 0
A53: **** | B53: Výsledek hospodaření před zdaněním | D53: 39 | E53: =E20+E38+E45-E46 -> 0 | F53: =F20+F38+F45-F46 -> 0

Sheet Cashflow
B1: Přehled o peněžních tocích
B2: CASH FLOW
B3: k | D3: Název a sídlo účetní jednotky
B7: IČO
A11: Označení | B11: TEXT | C11: Číslo řádku | D11: Skutečnost v účetním období
A12: a | B12: b | C12: c | D12: sledovaném 1 | E12: minulém 2
A13: P | B13: Stav peněž. prostř. a peněž. ekvival. na začátku období | C13: 01
B14: Peněžní toky z hlavní vydělečné činnosti (provozní činn.) | C14: 02
A15: Z | B15: Účetní zisk nebo ztráta z běžné činnosti před zdaněním | C15: 03
A16: A.1 | B16: Úpravy o nepeněžní operace | C16: 04 | D16: =SUM(D17:D22) -> 0 | E16: =SUM(E17:E22) -> 0
A17: A.1.1 | B17: Odpisy stálých aktiv a umořování opravné položky k nabytému majetku | C17: 05
A18: A.1.2 | B18: Změna stavu opravných položek, rezerv | C18: 06
A19: A.1.3 | B19: Změna stavu rezerv a změny zůstatků přech. účtů | C19: 07
A20: A.1.4 | B20: Výnosy z dividend a podílů na zisku | C20: 08
A21: A.1.5 | B21: Vyúčtované nákladové úroky s vyjímkou kapitalizovaných a vyúčtované výnosové úroky | C21: 09
A22: A.1.6 | B22: Případné úpravy o ostatní nepeněžní operace | C22: 10
A23: A* | B23: Čistý peněžní tok z prov.č. před zdaněním, změnami prac. kap. a mimoř. položkami | C23: 11 | D23: =D15+D16 -> 0 | E23: =E15+E16 -> 0
A24: A.2 | B24: Změna stavu nepeněžních složek pracovního kapitálu | C24: 12 | D24: =SUM(D25:D28) -> 0 | E24: =SUM(E25:E28) -> 0
A25: A.2.1 | B25: Změna stavu pohledávek z provozní činnosti, přechodných účtů aktiv | C25: 13
A26: A.2.2 | B26: Změna stavu krátkodobých závazků z provozní činnosti, přechodných účtů pasiv | C26: 14
A27: A.2.3 | B27: Změna stavu zásob | C27: 15
A28: A.2.4 | B28: Změna stavu krátkodobého fin. majetku nespadajícího do peněž. prostř. a ekvivalentů | C28: 16
A29: A** | B29: Čistý peněžní tok z prov.č. před zdaněním a mimořádnými položkami | C29: 17 | D29: =D23+D24 -> 0 | E29: =E23+E24 -> 0
A30: A.3 | B30: Vyplacené úroky s vyjímkou kapitalizovaných úroků | C30: 18
A31: A.4 | B31: Přijaté úroky | C31: 19
A32: A.5 | B32: Zaplacená daň z příjmů za běžnou činnost a doměrky danně za minulá období | C32: 20
A33: A.6 | B33: Příjmy a výdaje spojené s mimořádným hospodářským výsledkem včetně daně z příjmu | C33: 21
A34: A.7 | B34: Přijaté dividendy a podíly na zisku | C34: 22
A35: A*** | B35: Čistý peněžní tok z provozní činnosti | C35: 23 | D35: =SUM(D29:D34) -> 0 | E35: =SUM(E29:E34) -> 0
B36: Peněžní toky z investiční činnosti | C36: 24
A37: B.1 | B37: Výdaje spojené s nabytím stálých aktiv | C37: 25
A38: B.2 | B38: Příjmy z prodeje stálých aktiv | C38: 26
A39: B.3 | B39: Půjčky a úvěry spřízněným osobám | C39: 27
A40: B*** | B40: Čistý peněžní tok vztahující se k investiční činnosti | C40: 28 | D40: =SUM(D37:D39) -> 0 | E40: =SUM(E37:E39) -> 0
B41: Peněžní toky z finanční činnosti | C41: 29
A42: C.1 | B42: Dopady změn dlouhodobých, resp. krátkodobých závazků | C42: 30
A43: C.2 | B43: Dopady změn vlast.jm. na peněžní prostředky a peněžní ekvivalenty | C43: 31 | D43: =SUM(D44:D49) -> 0 | E43: =SUM(E44:E49) -> 0
A44: C.2.1 | B44: Zvýšení peněž. prostředků z důvodu zvýšení základního kapitálu,emisního ažia atd. | C44: 32
A45: C.2.2 | B45: Vyplacení podílu na vlastním kapitálu společníkům | C45: 33
A46: C.2.3 | B46: Další vklady peněžních prostředků společníků a akcionářů | C46: 34
A47: C.2.4 | B47: Úhrada ztráty společníky | C47: 35
A48: C.2.5 | B48: Přímé platby na vrub fondů | C48: 36
A49: C.2.6 | B49: Vyplacené dividendy nebo podíly na zisku včetně zaplacené daně | C49: 37
A50: C*** | B50: Čistý peněžní tok vztahující se k finanační činnosti | C50: 38 | D50: =D42+D43 -> 0 | E50: =E42+E43 -> 0
A51: F | B51: Čisté zvýšení (snížení) peněžních prostředků | C51: 39 | D51: =D35+D40+D50 -> 0 | E51: =E35+E40+E50 -> 0
A52: R | B52: Stav peněžních prostředků a peněžních ekvivalentů na konci období | C52: 40 | D52: =D13+D51 -> 0 | E52: =E13+E51 -> 0

Sheet Výkaz PZVK
D1: Přehled o změnách vlastního kapitálu | I1: Název a sídlo účetní jednotky
A2: Minimální závazný výčet informací | D2: k
A3: uvedený ve vyhlášce MF ČR
A4: č. 500/2002 Sb. | D4: ( v Kč )
D6: IČO
A11: ozn. | B11: Text | C11: řád. | D11: Běžné účetní období | H11: Minulé účetní období
A12: a | B12: b | D12: Počáteční | E12: Zvýšení | F12: Snížení | G12: Konečný | H12: Počáteční | I12: Zvýšení | J12: Snížení | K12: Konečný
A13: A. | B13: Základní kapitál upsaný v obchodním rejstříku (účet 411) | C13: 001
A14: B. | B14: Základní kapitál nezapsaný v obchodním rejstříku (účet 419) | C14: 002
A15: C.1 | B15: Základní kapitál (A. +/- B.) | C15: 003 | D15: =SUM(D13:D14) -> 0 | E15: =SUM(E13:E14) -> 0 | F15: 0 | G15: 0 | H15: 0 | I15: 0 | J15: 0 | K15: 0
A16: C.2 | B16: Vlastní akcie a vlastní obchodní podíly (- účet 252) | C16: 004
A17: C. | B17: Základní kapitál (C.1 + C.2) | C17: 005 | D17: =SUM(D15:D16) -> 0 | E17: =SUM(E15:E16) -> 0 | F17: 0 | G17: 0 | H17: 0 | I17: 0 | J17: 0 | K17: 0
A18: D. | B18: Emisní ážio (účet 412) | C18: 006
A19: E. | B19: Rezervní fondy (účet 421) | C19: 007
A20: F. | B20: Ostatní fondy ze zisku (účty 422,423,427) | C20: 008
A21: G. | B21: Kapitálové fondy (účet 413) | C21: 009
A22: H. | B22: Rozdíly z přecenění (+/- účet 413 +/- účet 418) | C22: 010
A23: I. | B23: Zisk účetních období (účet 428 + strana Dal účtu 431) | C23: 011
A24: J. | B24: Ztráta účetních období (účet 429 + strana Má dáti účtu 431) | C24: 012
A25: K. | B25: Zisk/ztráta za účetní období po zdanění | C25: 013
A26: * | B26: Vlastní kapitál celkem (součet C až K) | C26: 014 | D26: =SUM(D17:D25) -> 0 | E26: =SUM(E17:E25) -> 0 | F26: 0 | G26: 0 | H26: 0 | I26: 0 | J26: 0 | K26: 0
